bitfinex/quotes_SOLUSD_20251002
["timestamp","ask_amount","ask_price","bid_price","bid_amount"]
[1759376968214,0.72,224.15,224.09,0.71]
[1759376969347,11.01863678,224.14,224.02,79.2]
[1759376969582,0.86216157,224.13,224.03,0.71]
[1759376970408,0.86216157,224.13,224.02,4.46388715]
[1759376970409,10.87647521,224.1,224.02,4.46388715]
[1759376970642,10.87647521,224.12,224.0,5.17413771]
[1759376970643,11.01863678,224.08,224.0,5.17413771]
[1759376970843,0.72,224.07,224.0,5.17413771]
[1759376971014,0.72,224.06,224.0,5.17413771]
[1759376973436,11.73863678,224.08,224.01,0.71]
[1759376973743,42.47647521,224.11,224.01,0.71]
[1759376974316,0.72,224.1,224.01,0.71]
[1759376975226,0.72,224.1,224.02,4.46388715]
[1759376975418,0.72,224.1,224.03,0.71]
[1759376977134,42.47647521,224.11,224.04,4.46348866]
[1759376977335,42.47647521,224.11,224.05,0.71]
[1759376977645,0.72,224.15,224.05,0.71]
[1759376977943,32.32,224.17,224.05,0.99432314]
[1759376978146,0.14216157,224.13,224.04,104.46348866]
[1759376978354,0.14216157,224.13,223.99,132.4]
[1759376978355,0.14216157,224.09,223.98,11.8716826]
[1759376978521,0.72,224.08,223.97,4.60704525]
[1759376978724,11.01863678,224.09,223.99,11.87121255]
[1759376978725,0.72,224.07,223.99,11.87121255]
[1759376978920,0.72,224.09,224.0,0.71]
[1759376979119,0.72,224.09,224.01,15.62430248]
[1759376979342,0.72,224.09,224.02,0.71]
[1759376979547,32.32,224.12,224.02,0.71]
[1759376980743,32.32,224.12,224.03,15.62290763]
[1759376980954,0.72,224.11,224.04,0.71]
[1759376982229,0.72,224.11,224.05,4.46328944]
[1759376982448,0.72,224.1,224.05,4.46328944]
[1759376982652,0.72,224.09,224.05,4.46328944]
[1759376982845,0.72,224.09,224.05,5.17328944]
[1759376983037,0.72,224.11,224.05,5.17328944]
[1759376984852,0.72,224.11,224.03,20.8]
[1759376985156,31.6,224.12,224.06,0.71]
[1759376985460,0.72,224.12,224.06,0.71]
[1759376986358,0.72,224.12,224.07,4.46289106]
[1759376986651,0.72,224.11,224.07,4.46289106]
[1759376986862,0.72,224.1,224.07,4.46289106]
[1759376987861,0.72,224.12,224.07,4.46289106]
[1759376988045,36.06152889,224.14,224.07,4.46289106]
[1759376988244,0.72,224.13,224.07,4.46289106]
[1759376988452,0.72,224.12,224.07,4.46289106]
[1759376988762,0.72,224.11,224.07,4.46289106]
[1759376989539,31.6,224.13,224.07,4.46289106]
[1759376989767,10.87647521,224.09,224.03,79.2]
[1759376990064,10.87647521,224.09,224.03,83.66364924]
[1759376990065,32.32,224.08,224.03,83.66364924]
[1759376990267,0.72,224.07,224.03,83.66364924]
[1759376990565,0.72,224.07,224.02,4.46388715]
[1759376990745,0.72,224.07,224.02,5.17388715]
[1759376991961,0.72,224.07,224.02,16.33360503]
[1759376993563,0.72,224.07,223.98,15.6263952]
[1759376993870,0.72,224.07,224.02,0.71]
[1759376995457,0.72,224.07,224.02,0.7]
[1759376996481,0.71,224.06,224.0,0.7]
[1759376997953,0.71,224.06,224.0,4.46428571]
[1759376998151,0.71,224.05,224.0,4.46428571]
[1759376998486,0.71,224.04,224.0,5.16428571]
[1759376998954,31.6,224.1,224.01,0.7]
[1759376998955,32.31,224.1,224.01,0.7]
[1759376999151,0.71,224.09,224.01,0.7]
[1759377000478,4.46269189,224.08,224.01,5.16399639]
[1759377000675,11.72863678,224.07,224.01,4.46399639]
[1759377000875,11.01863678,224.07,224.01,4.46399639]
[1759377001080,0.71,224.06,224.01,4.46399639]
[1759377001264,0.71,224.05,224.01,4.46399639]
[1759377001667,0.71,224.05,224.0,4.46428571]
[1759377001866,0.71,224.05,224.0,5.16428571]
[1759377002380,0.71,224.05,224.0,4.46428571]
[1759377002579,0.71,224.05,224.01,0.7]
[1759377002787,0.71,224.05,224.01,5.16406803]
[1759377003577,0.71,224.06,224.01,5.16406803]
[1759377004652,15.48165501,224.07,224.01,0.7]
[1759377004847,0.71,224.06,224.0,0.7]
[1759377006168,11.01863678,224.08,224.0,0.7]
[1759377006374,0.71,224.07,224.0,0.7]
[1759377007164,0.71,224.07,224.01,4.46408642]
[1759377007165,5.17293291,224.07,224.01,4.46408642]
[1759377007348,0.71,224.06,224.01,4.46408642]
[1759377007554,0.71,224.06,224.01,5.16408642]
[1759377007957,0.71,224.09,224.02,0.7]
[1759377009259,0.71,224.14,224.03,15.62290763]
[1759377009608,11.58647521,224.16,224.04,0.7]
[1759377010587,11.58647521,224.16,224.05,15.62151305]
[1759377010909,21.51,224.16,224.06,0.7]
[1759377011107,0.71,224.16,224.06,0.98432314]
[1759377011289,0.71,224.16,224.07,0.7]
[1759377012202,0.71,224.16,224.08,15.61942162]
[1759377012508,0.71,224.16,224.09,0.7]
[1759377012886,0.71,224.16,224.08,4.46269189]
[1759377013082,0.71,224.15,224.08,4.46269189]
[1759377013283,0.71,224.14,224.08,4.46269189]
[1759377013685,0.71,224.13,224.08,4.46269189]
[1759377013885,0.71,224.12,224.08,4.46269189]
[1759377014706,0.71,224.12,224.08,5.16269189]
[1759377014908,0.71,224.14,224.08,5.16269189]
[1759377016217,4.46110202,224.16,224.09,0.7]
[1759377016405,11.58647521,224.16,224.09,0.7]
[1759377017204,11.58647521,224.16,224.06,104.46296381]
[1759377017205,11.01863678,224.15,224.06,104.46296381]
[1759377017401,10.87647521,224.13,224.06,104.46296381]
[1759377017598,0.71,224.12,224.06,83.66296381]
[1759377017995,4.46201684,224.12,224.06,83.66296381]
[1759377018296,0.71,224.11,224.06,83.66296381]
[1759377018509,0.71,224.1,224.06,4.46296381]
[1759377018827,5.17201684,224.12,224.06,5.16296381]
[1759377019413,0.71,224.12,224.06,5.16296381]
[1759377020415,10.87647521,224.13,224.06,5.16296381]
[1759377020416,11.01863678,224.13,224.06,5.16296381]
[1759377020600,0.71,224.11,224.03,79.9]
[1759377020803,0.71,224.1,224.03,79.9]
[1759377021111,0.71,224.09,224.03,79.9]
[1759377021309,42.59863678,224.11,224.03,79.2]
[1759377021514,31.58,224.11,224.04,0.7]
[1759377022920,31.58,224.11,224.05,4.46328944]
[1759377023125,31.58,224.11,224.06,0.67]
[1759377023494,32.28,224.11,224.06,0.67]
[1759377023909,0.7,224.11,224.06,5.13292558]
[1759377025124,32.3,224.13,224.07,0.66]
[1759377025425,0.45179362,224.12,224.07,0.66]
[1759377025622,1.17179362,224.12,224.07,0.66]
[1759377026004,1.17179362,224.12,224.08,0.66]
[1759377026317,0.72,224.11,224.04,15.62221031]
[1759377026510,1.17179362,224.12,224.06,0.66]
[1759377027618,5.63382931,224.12,224.06,0.66]
[1759377027931,5.63382931,224.12,224.04,5.12348866]
[1759377028232,0.72,224.11,224.04,5.12348866]
[1759377028427,0.72,224.11,224.04,4.46348866]
[1759377028732,0.72,224.11,224.06,4.46309024]
[1759377028917,0.72,224.11,224.06,5.12309024]
[1759377031116,0.72,224.1,224.06,5.12309024]
[1759377032028,0.45179362,224.12,224.07,0.66]
[1759377032530,0.45179362,224.12,224.08,0.66]
[1759377032708,0.45179362,224.12,224.09,0.66]
[1759377032905,0.45179362,224.12,224.1,0.66]
[1759377033618,0.45179362,224.12,224.1,5.12219689]
[1759377034023,0.45179362,224.12,224.11,0.66]
[1759377034820,0.45179362,224.12,224.05,0.28432314]
[1759377035022,0.45179362,224.12,224.09,0.66]
[1759377035615,0.45179362,224.12,224.1,0.66]
[1759377035811,0.45179362,224.12,224.07,0.66]
[1759377036018,0.45179362,224.12,223.93,22.32797679]
[1759377036019,0.72,224.11,224.04,0.66]
[1759377037031,32.01179362,224.12,224.04,0.66]
[1759377037230,32.01179362,224.12,224.05,4.46328944]
[1759377037410,32.01179362,224.12,224.06,0.66]
[1759377038042,0.72,224.11,224.06,0.66]
[1759377038221,0.72,224.1,224.06,0.66]
[1759377038422,0.72,224.1,224.06,5.12289604]
[1759377038941,32.73179362,224.12,224.07,0.66]
[1759377039443,32.73179362,224.12,224.08,0.66]
[1759377041622,0.45179362,224.12,224.09,5.12249274]
[1759377043123,0.45179362,224.12,224.08,11.15654839]
[1759377043325,0.45179362,224.12,224.09,0.66]
[1759377043542,0.45179362,224.12,224.1,0.66]
[1759377044422,0.45179362,224.12,224.11,4.4620945]
[1759377045744,0.45179362,224.12,224.09,4.46233853]
[1759377045958,0.45179362,224.12,224.09,5.12233853]
[1759377046854,0.45179362,224.12,224.1,0.66]
[1759377047855,0.45179362,224.12,224.11,4.4620945]
[1759377048043,0.45179362,224.12,224.08,91.01654839]
[1759377048428,0.45179362,224.12,224.09,5.12249274]
[1759377049250,0.45179362,224.12,224.1,0.66]
[1759377049930,0.45179362,224.12,224.11,4.4620945]
[1759377050862,1.17179362,224.12,224.09,4.46249274]
[1759377051058,0.72,224.11,224.08,79.2]
[1759377051236,0.72,224.1,224.08,79.2]
[1759377051427,1.17179362,224.12,224.08,4.46267239]
[1759377051752,1.17179362,224.12,224.08,5.12267239]
[1759377052048,0.45179362,224.12,224.07,4.46289106]
[1759377052265,0.72,224.11,224.07,4.46289106]
[1759377052553,0.72,224.11,224.07,5.12289106]
[1759377053663,0.72,224.11,224.07,4.46289106]
[1759377054543,0.72,224.11,224.07,5.12289106]
[1759377055643,0.45179362,224.12,224.07,5.12289106]
[1759377055851,0.45179362,224.12,224.08,0.66]
[1759377056160,1.16179362,224.12,224.08,0.66]
[1759377057859,1.16179362,224.12,224.06,5.12309024]
[1759377059737,0.71,224.11,224.06,5.12309024]
[1759377060137,0.71,224.1,224.06,4.46309024]
[1759377060555,1.16179362,224.12,224.06,5.12309024]
[1759377060757,0.45179362,224.12,224.06,5.12309024]
[1759377060955,0.71,224.11,224.06,5.12309024]
[1759377061162,0.71,224.1,224.06,5.12309024]
[1759377061460,0.71,224.09,224.04,79.2]
[1759377061656,0.71,224.08,224.03,4.46367098]
[1759377061956,0.71,224.07,224.03,5.12367098]
[1759377063464,1.16179362,224.12,224.04,0.66]
[1759377064264,1.16179362,224.12,224.05,4.46328944]
[1759377064462,0.71,224.11,224.05,4.46328944]
[1759377066750,0.71,224.11,224.05,0.66]
[1759377067870,0.45179362,224.12,224.06,4.46309024]
[1759377068072,0.45179362,224.12,224.07,0.66]
[1759377068376,0.45179362,224.12,224.08,0.66]
[1759377068568,1.16179362,224.12,224.08,0.66]
[1759377070278,1.16179362,224.12,224.08,5.12265375]
[1759377070776,0.45179362,224.12,224.08,5.12265375]
[1759377071077,1.16179362,224.12,224.08,5.12265375]
[1759377072267,0.45179362,224.12,224.09,0.66]
[1759377072578,0.45179362,224.12,224.1,0.66]
[1759377073150,0.45179362,224.12,224.08,0.66]
[1759377073371,1.16179362,224.12,224.08,0.66]
[1759377074348,0.71,224.11,224.06,4.46309024]
[1759377074568,0.71,224.1,224.06,4.46309024]
[1759377074877,0.71,224.09,224.05,79.2]
[1759377075050,0.71,224.08,224.05,79.2]
[1759377075482,0.71,224.08,224.05,83.6632527]
[1759377075648,4.4623906,224.1,224.05,84.3232527]
[1759377075649,0.71,224.1,224.05,84.3232527]
[1759377075851,0.71,224.09,224.05,79.86]
[1759377078159,0.71,224.09,224.05,0.66]
[1759377078856,0.71,224.08,224.02,5.12370891]
[1759377079055,0.71,224.08,224.03,0.66]
[1759377079252,0.71,224.07,224.03,0.66]
[1759377079852,0.71,224.07,224.02,4.46370891]
[1759377080080,4.46273457,224.08,224.02,5.12370891]
[1759377080282,0.71,224.06,224.0,79.86]
[1759377081269,0.71,224.06,224.01,4.46399429]
[1759377081584,0.7,224.06,224.01,5.17399429]
[1759377083868,5.16315005,224.06,224.01,0.71]
[1759377084184,5.16315005,224.06,223.99,5.14446723]
[1759377084185,0.68,224.05,223.99,5.14446723]
[1759377084677,0.68,224.05,223.99,4.46446723]
[1759377084863,0.68,224.05,223.99,5.14446723]
[1759377085061,4.46315005,224.06,223.99,4.46446723]
[1759377085261,5.14315005,224.06,224.0,0.68]
[1759377086259,12.52006444,224.05,223.96,5.14508305]
[1759377086453,2.18142766,224.04,223.96,5.14508305]
[1759377086655,0.68,224.03,223.96,5.14508305]
[1759377086882,0.68,224.02,223.96,5.14508305]
[1759377089179,4.46405961,224.02,223.96,5.14508305]
[1759377089485,0.68,224.01,223.96,5.14508305]
[1759377089668,0.68,224.0,223.96,0.68]
[1759377089985,4.46405961,224.02,223.94,0.68]
[1759377089986,0.68,223.99,223.94,0.68]
[1759377090281,0.68,223.99,223.93,83.6655223]
[1759377090282,0.68,223.99,223.95,0.68]
[1759377090988,4.46447906,224.0,223.95,0.68]
[1759377091285,0.68,223.99,223.95,0.68]
[1759377091579,0.68,223.98,223.93,4.4655223]
[1759377091780,0.68,223.98,223.94,0.68]
[1759377092084,5.14447906,224.0,223.95,0.68]
[1759377092283,5.14447906,224.0,223.93,4.4655223]
[1759377092487,5.14447906,224.0,223.94,0.68]
[1759377093358,0.68,224.0,223.94,0.68]
[1759377093954,0.68,224.0,223.94,5.14534335]
[1759377094186,0.68,224.0,223.95,0.68]
[1759377094383,0.68,224.0,223.96,0.68]
[1759377095588,0.68,223.99,223.94,0.68]
[1759377095769,5.1441284,224.01,223.95,0.68]
[1759377097661,12.52006444,224.0,223.95,0.68]
[1759377097963,0.68,223.99,223.95,0.68]
[1759377098472,0.68,223.99,223.92,4.46568836]
[1759377098473,0.68,223.98,223.93,0.68]
[1759377098685,0.68,223.98,223.94,0.68]
[1759377100994,0.14216157,224.0,223.94,4.46541616]
[1759377101195,0.82216157,224.0,223.95,5.14527027]
[1759377101402,0.14216157,224.0,223.95,5.14527027]
[1759377101604,0.68,223.99,223.93,0.68]
[1759377103275,0.68,223.99,223.93,5.14549553]
[1759377103577,5.14448526,223.99,223.93,5.14549553]
[1759377103983,0.68,223.98,223.93,5.14549553]
[1759377104293,0.68,223.98,223.94,0.68]
[1759377104796,0.68,223.98,223.94,5.14547]
[1759377107480,0.68,223.98,223.94,0.68]
[1759377109094,13.55387894,224.0,223.95,0.68]
[1759377109399,13.55387894,224.0,223.96,0.68]
[1759377109400,0.68,224.0,223.96,0.68]
[1759377109702,10.87647521,224.01,223.97,0.68]
[1759377110003,0.68,224.0,223.96,0.68]
[1759377111386,0.68,224.01,223.97,5.14488368]
[1759377114682,0.72,224.0,223.95,0.67]
[1759377114882,0.72,224.0,223.96,0.67]
[1759377115514,0.72,224.0,223.97,0.67]
[1759377115686,0.72,224.02,223.97,0.67]
[1759377115881,0.72,224.01,223.97,5.13471213]
[1759377116086,0.72,224.02,223.98,0.67]
[1759377116388,0.72,224.01,223.97,5.13471213]
[1759377116906,0.72,224.0,223.97,5.13471213]
[1759377117204,4.46388339,224.03,223.96,0.67]
[1759377117508,0.72,224.0,223.96,0.67]
[1759377118211,0.72,224.0,223.97,4.46488368]
[1759377118697,44.20662796,224.04,223.92,11.1652003]
[1759377118698,2.22142766,223.99,223.92,11.1652003]
[1759377118897,0.72,223.98,223.92,15.63097167]
[1759377119085,0.72,223.97,223.92,16.30097167]
[1759377119405,32.22,223.99,223.93,0.67]
[1759377120204,32.22,223.99,223.94,4.46548182]
[1759377120509,0.72,223.98,223.94,5.13548182]
[1759377121903,35.96457987,223.99,223.94,0.67]
[1759377122213,0.72,223.97,223.93,0.67]
[1759377122419,36.68457987,223.99,223.94,0.67]
[1759377122615,0.72,223.98,223.94,0.67]
[1759377123289,0.72,223.97,223.93,25.26555576]
[1759377123488,0.72,223.97,223.93,25.93555576]
[1759377124501,0.72,223.97,223.93,25.26555576]
[1759377124710,0.72,223.97,223.94,0.67]
[1759377125013,0.72,223.97,223.89,79.3]
[1759377125014,0.72,223.96,223.89,79.3]
[1759377125215,0.72,223.99,223.91,20.8]
[1759377125518,0.72,223.99,223.89,4.56630864]
[1759377125519,43.09647521,224.01,223.92,21.47]
[1759377125730,43.09647521,224.01,223.93,0.67]
[1759377126020,14.91254547,224.02,223.94,20.8]
[1759377126021,13.41111781,224.02,223.94,20.8]
[1759377126190,31.5,224.01,223.94,20.8]
[1759377126395,32.22,224.01,223.96,4.46508305]
[1759377126804,0.72,224.0,223.96,5.13508305]
[1759377127245,11.01863678,224.04,223.97,0.67]
[1759377127423,31.5,224.04,223.97,0.67]
[1759377128109,32.22,224.04,223.97,0.67]
[1759377128319,9.43995204,224.05,223.98,15.6263952]
[1759377128504,9.43995204,224.05,224.01,20.8]
[1759377128819,9.43995204,224.05,224.02,0.67]
[1759377128998,9.43995204,224.05,224.0,20.8]
[1759377129202,9.43995204,224.05,224.01,0.67]
[1759377129415,9.43995204,224.05,224.02,0.67]
[1759377130197,0.72,224.04,224.01,20.8]
[1759377133425,9.43995204,224.05,224.01,25.26403222]
[1759377133629,9.43995204,224.05,224.02,0.67]
[1759377134706,9.43995204,224.05,224.02,5.13385825]
[1759377134912,9.43995204,224.05,224.02,4.46385825]
[1759377135115,9.43995204,224.05,224.03,0.67]
[1759377135509,9.43995204,224.05,224.02,4.46385825]
[1759377135707,9.43995204,224.05,224.02,5.13385825]
[1759377138548,9.43995204,224.05,224.03,0.67]
[1759377139542,9.43995204,224.05,224.04,4.46348866]
[1759377140441,32.2,224.07,224.04,4.46348866]
[1759377140622,32.2,224.07,224.03,0.67]
[1759377140951,32.2,224.07,224.03,5.13367605]
[1759377141956,31.48,224.07,224.04,0.67]
[1759377142276,32.15,224.09,224.05,0.67]
[1759377142822,0.67,224.08,224.03,16.29289579]
[1759377143039,0.67,224.08,224.04,0.67]
[1759377143342,0.67,224.08,224.05,0.67]
[1759377143854,32.18,224.09,224.05,0.67]
[1759377144442,0.7,224.11,224.06,0.66]
[1759377144633,0.7,224.11,224.07,0.66]
[1759377144948,0.45179362,224.12,224.08,0.66]
[1759377145144,0.7,224.11,224.07,21.46]
[1759377145350,0.7,224.11,224.08,4.46269189]
[1759377145533,0.7,224.1,224.07,20.8]
[1759377145849,0.7,224.09,224.07,20.8]
[1759377146245,0.45179362,224.12,224.08,0.66]
[1759377146651,0.45179362,224.12,224.1,20.8]
[1759377146949,0.7,224.15,224.1,21.46]
[1759377147345,0.7,224.15,224.11,4.4620945]
[1759377147541,0.7,224.14,224.11,4.4620945]
[1759377147939,0.7,224.15,224.11,4.4620945]
[1759377148754,0.7,224.15,224.11,5.1220945]
[1759377148927,49.34130988,224.17,224.11,5.1220945]
[1759377149251,49.34130988,224.17,224.1,20.8]
[1759377149252,0.7,224.14,224.1,20.8]
[1759377149453,31.46,224.16,224.11,0.66]
[1759377149633,14.10093359,224.17,224.12,0.66]
[1759377149947,0.7,224.17,224.12,0.66]
[1759377150324,0.7,224.16,224.12,0.66]
[1759377150544,0.7,224.15,224.1,0.66]
[1759377150741,0.7,224.15,224.11,0.66]
[1759377150926,0.7,224.17,224.12,0.66]
[1759377152255,0.7,224.17,224.13,4.46169633]
[1759377152438,0.7,224.17,224.13,5.12169633]
[1759377153253,0.7,224.16,224.13,4.46169633]
[1759377153440,41.39035818,224.18,224.13,5.12169633]
[1759377153641,0.7,224.17,224.13,5.12169633]
[1759377154259,0.7,224.16,224.11,4.46197997]
[1759377154658,0.7,224.16,224.12,0.66]
[1759377155337,0.7,224.16,224.13,25.26169633]
[1759377155739,40.69035818,224.18,224.14,0.66]
[1759377155934,40.69035818,224.18,224.13,25.26169633]
[1759377156139,41.39035818,224.18,224.14,0.66]
[1759377156644,40.69035818,224.18,224.13,25.26169633]
[1759377156842,40.69035818,224.18,224.15,0.66]
[1759377157136,40.69035818,224.18,224.15,5.12113702]
[1759377157340,0.7,224.2,224.15,5.12113702]
[1759377157540,0.14216157,224.21,224.15,5.12113702]
[1759377157541,0.7,224.19,224.15,5.12113702]
[1759377160363,0.7,224.19,224.15,4.6693434]
[1759377160836,31.46,224.21,224.16,0.66]
[1759377161038,0.7,224.2,224.16,0.66]
[1759377161566,0.7,224.19,224.15,4.0093434]
[1759377162147,0.7,224.19,224.14,5.12149727]
[1759377162347,0.7,224.19,224.15,0.66]
[1759377162860,0.7,224.18,224.14,4.46149727]
[1759377163061,0.7,224.18,224.14,5.12149727]
[1759377163572,35.92015722,224.21,224.14,5.12149727]
[1759377163862,31.46,224.21,224.14,5.12149727]
[1759377164068,0.7,224.2,224.14,5.12149727]
[1759377164361,0.7,224.19,224.14,5.12149727]
[1759377164552,0.7,224.19,224.14,4.46149727]
[1759377164753,0.7,224.19,224.14,5.12149727]
[1759377164949,0.7,224.19,224.15,0.66]
[1759377165342,0.7,224.19,224.16,4.46109921]
[1759377171175,0.7,224.18,224.13,21.46]
[1759377171357,32.14,224.17,224.12,79.2]
[1759377171560,32.14,224.16,224.12,79.2]
[1759377171870,0.7,224.15,224.12,79.2]
[1759377172372,0.7,224.14,224.12,79.2]
[1759377172549,0.7,224.13,224.09,4.46248957]
[1759377172750,0.7,224.13,224.09,25.92248957]
[1759377175559,0.68,224.12,224.09,25.26248957]
[1759377176270,0.68,224.12,224.09,20.8]
[1759377177557,15.33777738,224.15,224.09,25.93248947]
[1759377177752,0.68,224.14,224.09,25.93248947]
[1759377177966,0.68,224.13,224.09,25.93248947]
[1759377179056,0.68,224.13,224.1,0.67]
[1759377180474,10.87647521,224.15,224.09,25.26248947]
[1759377180774,0.68,224.12,224.09,20.8]
[1759377183064,31.42,224.13,224.09,21.47]
[1759377183379,31.42,224.13,224.09,20.8]
[1759377183380,0.68,224.12,224.09,20.8]
[1759377184089,0.68,224.12,224.09,21.47]
[1759377184686,32.1,224.12,224.09,21.47]
[1759377184873,31.42,224.12,224.09,21.47]
[1759377187656,31.42,224.12,224.09,25.93247106]
[1759377187882,0.68,224.13,224.09,25.93247106]
[1759377188086,31.42,224.12,224.09,25.93247106]
[1759377189367,32.1,224.12,224.09,21.47]
[1759377189782,32.1,224.12,224.09,20.8]
[1759377189954,0.68,224.12,224.09,25.26249042]
[1759377190158,32.1,224.12,224.09,25.26249042]
[1759377190691,32.1,224.12,224.09,25.93249042]
[1759377190891,32.1,224.12,224.09,25.43249042]
[1759377194369,0.68,224.11,224.03,20.8]
[1759377194593,0.68,224.11,224.04,21.47]
[1759377194789,0.68,224.1,224.04,21.47]
[1759377194994,0.68,224.1,224.05,0.67]
[1759377195192,31.42,224.12,224.05,0.67]
[1759377195392,0.68,224.11,224.04,20.8]
[1759377195598,0.68,224.1,224.04,21.47]
[1759377195900,0.68,224.09,224.05,4.46328944]
[1759377196070,0.68,224.09,224.05,5.13328944]
[1759377196697,0.68,224.09,224.06,0.67]
[1759377197210,4.46209732,224.11,224.05,4.46328944]
[1759377197388,0.68,224.08,224.05,4.46328944]
[1759377197584,32.1,224.08,224.05,4.46328944]
[1759377197790,32.1,224.08,224.05,5.13328944]
[1759377197980,32.1,224.08,224.05,4.46328944]
[1759377198180,0.68,224.07,224.04,4.46346991]
[1759377198502,0.68,224.07,224.05,20.8]
[1759377199406,35.88283026,224.08,224.01,4.46391242]
[1759377199590,0.68,224.06,224.03,20.8]
[1759377199770,0.68,224.05,224.01,5.13391242]
[1759377200185,0.68,224.05,224.02,0.67]
[1759377201310,0.69,224.09,224.03,0.71]
[1759377201480,31.4,224.09,224.03,0.71]
[1759377202319,31.4,224.09,224.04,4.46348866]
[1759377202599,32.09,224.09,224.05,0.71]
[1759377204503,0.67,224.08,224.04,4.46348866]
[1759377204687,0.67,224.07,224.02,5.18375046]
[1759377204893,0.67,224.06,224.02,5.18375046]
[1759377205094,10.87647521,224.08,224.02,5.18375046]
[1759377205293,0.67,224.07,224.02,5.18375046]
[1759377205608,0.67,224.06,224.02,5.18375046]
[1759377205786,0.67,224.06,224.03,0.72]
[1759377208605,0.67,224.06,224.02,4.46375046]
[1759377208810,0.67,224.06,224.02,5.18375046]
[1759377209016,0.67,224.06,224.03,0.72]
[1759377209223,10.87647521,224.08,224.0,4.46428571]
[1759377209391,0.67,224.07,224.01,0.72]
[1759377210323,10.87647521,224.06,224.01,25.98405706]
[1759377210496,0.67,224.05,224.01,25.98405706]
[1759377211212,0.67,224.05,224.01,25.26405706]
[1759377211511,0.67,224.05,224.02,0.72]
[1759377212222,0.67,224.05,224.01,25.26405706]
[1759377212391,32.07,224.05,224.02,0.72]
[1759377213894,0.67,224.04,224.01,25.26405706]
[1759377214100,0.67,224.04,224.03,20.8]
[1759377214790,10.87647521,224.04,223.96,4.46508305]
[1759377214991,10.87647521,224.02,223.95,0.72]
[1759377215288,10.87647521,224.0,223.93,0.72]
[1759377215486,10.87647521,223.98,223.93,0.72]
[1759377215710,10.87647521,223.98,223.91,0.72]
[1759377216018,0.67,223.97,223.93,20.8]
[1759377216210,0.67,223.97,223.93,21.52]
[1759377216411,32.07,223.97,223.93,21.52]
[1759377216613,32.07,223.97,223.93,25.98553854]
[1759377218105,0.67,223.97,223.93,25.98553854]
[1759377218417,32.07,223.97,223.93,25.98553854]
[1759377219419,31.4,223.97,223.94,0.72]
[1759377219598,31.34,223.97,223.94,0.72]
[1759377219801,32.01,223.97,223.93,25.26553854]
[1759377220110,32.01,223.97,223.93,25.98553854]
[1759377221607,31.34,223.97,223.93,25.98553854]
[1759377221811,0.67,223.96,223.93,25.98553854]
[1759377222222,31.34,223.97,223.94,0.72]
[1759377222409,32.01,223.97,223.93,25.26553854]
[1759377222608,32.01,223.97,223.93,21.52]
[1759377222609,32.07,223.97,223.93,21.52]
[1759377223621,31.4,223.97,223.94,0.72]
[1759377223798,31.4,223.97,223.93,20.8]
[1759377223998,31.4,223.97,223.95,0.72]
[1759377224314,31.4,223.97,223.93,25.98563645]
[1759377224504,32.07,223.97,223.93,25.98563645]
[1759377224853,31.4,223.97,223.94,0.72]
[1759377225496,32.07,223.97,223.93,25.26563645]
[1759377225703,32.07,223.97,223.93,25.98563645]